[Event "Early-Titled-Tuesday-Blitz-January-23-2024"]
[Site "Chess.com"]
[Date "2024.01.23"]
[Round "8"]
[White "martinmena"]
[Black "Kaissa10"]
[Result "0-1"]
[WhiteElo "2059"]
[BlackElo "2286"]
[TimeControl "180+1"]
[EndTime "9:26:16 PST"]
[Termination "Kaissa10 won on time"]

1. c4 {[%clk 0:02:43.1]} 1... e6 {[%clk 0:02:58.1]} 2. g3 {[%clk 0:02:41.5]}
2... Nf6 {[%clk 0:02:57.6]} 3. Bg2 {[%clk 0:02:42]} 3... d5 {[%clk 0:02:58]} 4.
Nf3 {[%clk 0:02:39]} 4... dxc4 {[%clk 0:02:57]} 5. Qa4+ {[%clk 0:02:36.8]} 5...
Nbd7 {[%clk 0:02:57.1]} 6. Qxc4 {[%clk 0:02:36]} 6... a6 {[%clk 0:02:57.7]} 7.
d3 {[%clk 0:02:27.2]} 7... c5 {[%clk 0:02:53]} 8. O-O {[%clk 0:02:18.2]} 8... b5
{[%clk 0:02:44.4]} 9. Qc2 {[%clk 0:02:16.5]} 9... Bb7 {[%clk 0:02:43.4]} 10. Nc3
{[%clk 0:01:57.9]} 10... Be7 {[%clk 0:02:25.3]} 11. Ng5 {[%clk 0:01:47.2]} 11...
Bxg2 {[%clk 0:02:22.1]} 12. Kxg2 {[%clk 0:01:46.4]} 12... Ne5 {[%clk 0:02:13.8]}
13. Bf4 {[%clk 0:01:27.8]} 13... Nc6 {[%clk 0:02:09]} 14. Nge4 {[%clk
0:01:15.2]} 14... Nd4 {[%clk 0:01:54.4]} 15. Qd2 {[%clk 0:01:12.3]} 15... Nd5
{[%clk 0:01:45.9]} 16. Nxd5 {[%clk 0:00:30.8]} 16... exd5 {[%clk 0:01:44.2]} 17.
e3 {[%clk 0:00:28.3]} 17... dxe4 {[%clk 0:01:39.5]} 18. exd4 {[%clk 0:00:26.9]}
18... Qxd4 {[%clk 0:01:40.2]} 19. dxe4 {[%clk 0:00:07.9]} 19... Qxe4+ {[%clk
0:01:40.4]} 20. f3 {[%clk 0:00:06.8]} 20... Qb7 {[%clk 0:01:40.5]} 21. Rfe1
{[%clk 0:00:04.9]} 21... O-O {[%clk 0:01:40.4]} 22. Rac1 {[%clk 0:00:00.4]}
22... Rfd8 {[%clk 0:01:37.6]} 0-1

[Event "Early-Titled-Tuesday-Blitz-January-23-2024"]
[Site "Chess.com"]
[Date "2024.01.23"]
[Round "8"]
[White "UnTucopalaTimba"]
[Black "BeardedNM"]
[Result "0-1"]
[WhiteElo "1952"]
[BlackElo "2201"]
[TimeControl "180+1"]
[EndTime "9:26:17 PST"]
[Termination "BeardedNM won by resignation"]

1. e4 {[%clk 0:02:59.6]} 1... e6 {[%clk 0:02:21.2]} 2. d4 {[%clk 0:02:56.9]}
2... d5 {[%clk 0:02:20.9]} 3. exd5 {[%clk 0:02:57.1]} 3... exd5 {[%clk
0:02:21.3]} 4. Bd3 {[%clk 0:02:56.9]} 4... Bd6 {[%clk 0:02:21.8]} 5. Ne2 {[%clk
0:02:56.7]} 5... Nc6 {[%clk 0:02:21]} 6. c3 {[%clk 0:02:56.3]} 6... Qh4 {[%clk
0:02:19.9]} 7. Nd2 {[%clk 0:02:42.9]} 7... Bg4 {[%clk 0:02:16]} 8. h3 {[%clk
0:02:25.1]} 8... Nf6 {[%clk 0:02:02.8]} 9. Nb3 {[%clk 0:02:12.8]} 9... O-O-O
{[%clk 0:01:50.8]} 10. Be3 {[%clk 0:02:11.9]} 10... Rhe8 {[%clk 0:01:41.9]} 11.
Qc2 {[%clk 0:02:05.6]} 11... Rxe3 {[%clk 0:01:33.1]} 12. O-O-O {[%clk
0:01:51.4]} 12... Bxe2 {[%clk 0:01:14.4]} 13. Bf5+ {[%clk 0:01:37.6]} 13... Kb8
{[%clk 0:01:11]} 14. g3 {[%clk 0:01:36.3]} 14... Qh6 {[%clk 0:00:39.2]} 15. Rd2
{[%clk 0:01:28.4]} 15... Re7 {[%clk 0:00:26.8]} 16. Kb1 {[%clk 0:01:25.9]} 16...
Bh5 {[%clk 0:00:19.6]} 17. f4 {[%clk 0:01:18]} 17... Bg6 {[%clk 0:00:19.5]} 18.
Rf2 {[%clk 0:01:03.3]} 18... Bxf5 {[%clk 0:00:19.1]} 19. Qxf5 {[%clk 0:01:03.2]}
19... Qg6 {[%clk 0:00:19.7]} 20. Qxg6 {[%clk 0:01:02.4]} 20... hxg6 {[%clk
0:00:20.6]} 0-1

[Event "Early-Titled-Tuesday-Blitz-January-23-2024"]
[Site "Chess.com"]
[Date "2024.01.23"]
[Round "8"]
[White "HajiyevKanan"]
[Black "LeoLV10"]
[Result "0-1"]
[WhiteElo "2573"]
[BlackElo "2453"]
[TimeControl "180+1"]
[EndTime "9:26:24 PST"]
[Termination "LeoLV10 won by resignation"]

1. d4 {[%clk 0:03:00.9]} 1... Nf6 {[%clk 0:02:59.5]} 2. Nf3 {[%clk 0:03:01.8]}
2... c5 {[%clk 0:02:58.8]} 3. c3 {[%clk 0:03:02]} 3... e6 {[%clk 0:02:58.7]} 4.
g3 {[%clk 0:03:01.8]} 4... Nc6 {[%clk 0:02:59.2]} 5. Bg2 {[%clk 0:03:02.2]} 5...
cxd4 {[%clk 0:02:59.7]} 6. cxd4 {[%clk 0:03:03.1]} 6... d5 {[%clk 0:03:00.2]} 7.
O-O {[%clk 0:03:04]} 7... Bd6 {[%clk 0:03:00.3]} 8. Nc3 {[%clk 0:03:04.7]} 8...
O-O {[%clk 0:03:00.7]} 9. Bg5 {[%clk 0:03:05.2]} 9... Be7 {[%clk 0:02:47.2]} 10.
Rc1 {[%clk 0:03:04.7]} 10... a6 {[%clk 0:02:46.7]} 11. e3 {[%clk 0:03:05]} 11...
Bd7 {[%clk 0:02:47]} 12. Ne5 {[%clk 0:03:05.1]} 12... h6 {[%clk 0:02:43.5]} 13.
Bxf6 {[%clk 0:03:00.8]} 13... Bxf6 {[%clk 0:02:42.3]} 14. Nxc6 {[%clk
0:02:56.1]} 14... Bxc6 {[%clk 0:02:41.5]} 15. Na4 {[%clk 0:02:56.8]} 15... Bxa4
{[%clk 0:02:39.6]} 16. Qxa4 {[%clk 0:02:57.7]} 16... b5 {[%clk 0:02:39.8]} 17.
Qb4 {[%clk 0:02:57.1]} 17... Be7 {[%clk 0:02:39.1]} 18. Qc3 {[%clk 0:02:55.5]}
18... Rc8 {[%clk 0:02:36.9]} 19. Qd3 {[%clk 0:02:51.3]} 19... Qb6 {[%clk
0:02:35.5]} 20. h4 {[%clk 0:02:47.3]} 20... Qb7 {[%clk 0:02:29.5]} 21. a3 {[%clk
0:02:44.1]} 21... a5 {[%clk 0:02:28.9]} 22. h5 {[%clk 0:02:38.3]} 22... b4
{[%clk 0:02:16.6]} 23. a4 {[%clk 0:02:37.5]} 23... b3 {[%clk 0:02:07.5]} 24. e4
{[%clk 0:02:17.3]} 24... dxe4 {[%clk 0:02:00.9]} 25. Bxe4 {[%clk 0:02:14]} 25...
Qb4 {[%clk 0:02:00.9]} 26. Bc6 {[%clk 0:02:11.3]} 26... Rfd8 {[%clk 0:01:59.8]}
27. d5 {[%clk 0:01:57.4]} 27... Bf6 {[%clk 0:01:41.1]} 28. Qb5 {[%clk
0:01:28.8]} 28... exd5 {[%clk 0:01:30.3]} 29. Qxb4 {[%clk 0:01:15.2]} 29... axb4
{[%clk 0:01:30.4]} 30. Bb7 {[%clk 0:01:10.3]} 30... Rb8 {[%clk 0:01:22.7]} 31.
Bc6 {[%clk 0:01:06.7]} 31... Bxb2 {[%clk 0:01:21.9]} 32. Rb1 {[%clk 0:01:06.1]}
32... Bc3 {[%clk 0:01:19.5]} 33. Rxb3 {[%clk 0:01:05.6]} 33... d4 {[%clk
0:01:18]} 34. Rd1 {[%clk 0:01:02.6]} 34... d3 {[%clk 0:01:14.4]} 35. a5 {[%clk
0:01:02.7]} 35... Rd6 {[%clk 0:01:12.5]} 36. Be4 {[%clk 0:01:02.7]} 36... d2
{[%clk 0:01:12.2]} 37. Rdb1 {[%clk 0:00:42.3]} 37... d1=Q+ {[%clk 0:01:11]} 0-1

[Event "Early-Titled-Tuesday-Blitz-January-23-2024"]
[Site "Chess.com"]
[Date "2024.01.23"]
[Round "8"]
[White "StankovicIvan"]
[Black "Raud100"]
[Result "1-0"]
[WhiteElo "2518"]
[BlackElo "2382"]
[TimeControl "180+1"]
[EndTime "9:26:33 PST"]
[Termination "StankovicIvan won by resignation"]

1. e4 {[%clk 0:03:00.9]} 1... d6 {[%clk 0:03:00]} 2. c4 {[%clk 0:02:59.9]} 2...
Nf6 {[%clk 0:03:00.9]} 3. Nc3 {[%clk 0:02:59.8]} 3... c5 {[%clk 0:02:59.1]} 4.
g3 {[%clk 0:02:59.5]} 4... Nc6 {[%clk 0:02:59.5]} 5. Bg2 {[%clk 0:02:59.7]} 5...
g6 {[%clk 0:02:59.9]} 6. d3 {[%clk 0:02:59.9]} 6... Bg7 {[%clk 0:03:00]} 7. Nge2
{[%clk 0:03:00.4]} 7... O-O {[%clk 0:03:00.3]} 8. O-O {[%clk 0:02:59.6]} 8... a6
{[%clk 0:03:00.2]} 9. Rb1 {[%clk 0:02:59.1]} 9... Rb8 {[%clk 0:03:00.3]} 10. a3
{[%clk 0:02:59.2]} 10... b5 {[%clk 0:03:00.3]} 11. cxb5 {[%clk 0:02:58.2]} 11...
axb5 {[%clk 0:03:01.2]} 12. b4 {[%clk 0:02:58.2]} 12... cxb4 {[%clk 0:02:55.4]}
13. axb4 {[%clk 0:02:59.1]} 13... e5 {[%clk 0:02:27.2]} 14. h3 {[%clk
0:02:57.6]} 14... Be6 {[%clk 0:02:24.4]} 15. Nd5 {[%clk 0:02:57]} 15... Qd7
{[%clk 0:02:10.7]} 16. Kh2 {[%clk 0:02:56.6]} 16... Bxd5 {[%clk 0:02:06.5]} 17.
exd5 {[%clk 0:02:56.4]} 17... Ne7 {[%clk 0:02:06.4]} 18. Qb3 {[%clk 0:02:52]}
18... Rfc8 {[%clk 0:02:00.7]} 19. Be3 {[%clk 0:02:47.1]} 19... Qb7 {[%clk
0:01:49.4]} 20. Nc3 {[%clk 0:02:44.7]} 20... Nd7 {[%clk 0:01:45.5]} 21. Ne4
{[%clk 0:02:43.2]} 21... Qxd5 {[%clk 0:01:37.1]} 22. Nf6+ {[%clk 0:02:04.8]}
22... Nxf6 {[%clk 0:01:36.6]} 23. Bxd5 {[%clk 0:02:05.3]} 23... Nexd5 {[%clk
0:01:37.1]} 24. Rbc1 {[%clk 0:02:04.6]} 24... h5 {[%clk 0:01:24.4]} 25. Rxc8+
{[%clk 0:02:03.4]} 25... Rxc8 {[%clk 0:01:25.2]} 26. Rc1 {[%clk 0:02:02.9]}
26... Ra8 {[%clk 0:01:22.6]} 27. Rc6 {[%clk 0:01:49.1]} 27... Nxe3 {[%clk
0:01:12.5]} 28. fxe3 {[%clk 0:01:48.9]} 28... d5 {[%clk 0:01:11.7]} 29. Rc7
{[%clk 0:01:45.1]} 29... Ra1 {[%clk 0:01:02.4]} 30. e4 {[%clk 0:01:40.8]} 30...
Re1 {[%clk 0:00:51.1]} 31. exd5 {[%clk 0:01:40.5]} 31... h4 {[%clk 0:00:50.3]}
32. d6 {[%clk 0:01:32.1]} 32... hxg3+ {[%clk 0:00:32.7]} 33. Kxg3 {[%clk
0:01:33]} 33... Nh5+ {[%clk 0:00:31.3]} 34. Kf2 {[%clk 0:01:31.6]} 34... Rh1
{[%clk 0:00:28.7]} 35. Qxf7+ {[%clk 0:01:29.9]} 35... Kh7 {[%clk 0:00:29.2]} 36.
Qxg7+ {[%clk 0:01:22.9]} 36... Nxg7 {[%clk 0:00:28.5]} 37. d7 {[%clk 0:01:20.4]}
1-0

[Event "Early-Titled-Tuesday-Blitz-January-23-2024"]
[Site "Chess.com"]
[Date "2024.01.23"]
[Round "8"]
[White "HanSchut"]
[Black "diamonds13"]
[Result "1-0"]
[WhiteElo "2271"]
[BlackElo "2333"]
[TimeControl "180+1"]
[EndTime "9:26:38 PST"]
[Termination "HanSchut won by checkmate"]

1. e4 {[%clk 0:02:49.4]} 1... c5 {[%clk 0:03:00.2]} 2. Nf3 {[%clk 0:02:49.6]}
2... e6 {[%clk 0:03:00.7]} 3. c4 {[%clk 0:02:49.9]} 3... Nc6 {[%clk 0:03:00.2]}
4. Nc3 {[%clk 0:02:50.4]} 4... Nge7 {[%clk 0:02:57.5]} 5. d4 {[%clk 0:02:49.8]}
5... cxd4 {[%clk 0:02:57.4]} 6. Nxd4 {[%clk 0:02:50.7]} 6... Ng6 {[%clk
0:02:57.4]} 7. Ndb5 {[%clk 0:02:48.5]} 7... d6 {[%clk 0:02:56.3]} 8. h4 {[%clk
0:02:40.8]} 8... h5 {[%clk 0:02:55.4]} 9. Bg5 {[%clk 0:02:37.8]} 9... f6 {[%clk
0:02:54.9]} 10. Be3 {[%clk 0:02:36.2]} 10... a6 {[%clk 0:02:54.7]} 11. Nd4
{[%clk 0:02:36]} 11... Nce5 {[%clk 0:02:51.7]} 12. Be2 {[%clk 0:02:33.6]} 12...
Be7 {[%clk 0:02:39.6]} 13. Bxh5 {[%clk 0:02:30.1]} 13... Kf8 {[%clk 0:02:35.4]}
14. f4 {[%clk 0:02:25.5]} 14... Nxc4 {[%clk 0:02:17.3]} 15. Bxg6 {[%clk
0:02:25.3]} 15... Nxe3 {[%clk 0:02:17]} 16. Qe2 {[%clk 0:02:25.9]} 16... e5
{[%clk 0:02:10.1]} 17. Qxe3 {[%clk 0:02:18.9]} 17... exd4 {[%clk 0:02:10.2]} 18.
Qxd4 {[%clk 0:02:18.4]} 18... Be6 {[%clk 0:02:02.8]} 19. h5 {[%clk 0:01:58.4]}
19... f5 {[%clk 0:01:58.5]} 20. exf5 {[%clk 0:01:51.4]} 20... Bf6 {[%clk
0:01:58]} 21. Qd3 {[%clk 0:01:40.7]} 21... Bg8 {[%clk 0:01:47.4]} 22. O-O-O
{[%clk 0:01:37.1]} 22... Rc8 {[%clk 0:01:42.8]} 23. Rhe1 {[%clk 0:01:30.4]}
23... Bc4 {[%clk 0:01:36.2]} 24. Qxd6+ {[%clk 0:01:26.7]} 24... Qxd6 {[%clk
0:01:34.7]} 25. Rxd6 {[%clk 0:01:27.6]} 25... Bb5 {[%clk 0:01:29.4]} 26. Kb1
{[%clk 0:01:05.3]} 26... Bxc3 {[%clk 0:01:22.9]} 27. bxc3 {[%clk 0:01:02.6]}
27... Be8 {[%clk 0:01:21.9]} 28. g4 {[%clk 0:00:33.8]} 28... Bxg6 {[%clk
0:01:20.8]} 29. fxg6 {[%clk 0:00:34.3]} 29... Re8 {[%clk 0:01:18.7]} 30. Red1
{[%clk 0:00:18.5]} 30... Ke7 {[%clk 0:01:13.2]} 31. Rd7+ {[%clk 0:00:17.6]}
31... Ke6 {[%clk 0:01:12.3]} 32. R1d6# {[%clk 0:00:17.3]} 1-0

[Event "Early-Titled-Tuesday-Blitz-January-23-2024"]
[Site "Chess.com"]
[Date "2024.01.23"]
[Round "8"]
[White "Kotlyar_K"]
[Black "jcmesafischer"]
[Result "1-0"]
[WhiteElo "2502"]
[BlackElo "2336"]
[TimeControl "180+1"]
[EndTime "9:26:39 PST"]
[Termination "Kotlyar_K won on time"]

1. e4 {[%clk 0:03:00.9]} 1... c5 {[%clk 0:02:57.6]} 2. Nf3 {[%clk 0:03:01.4]}
2... d6 {[%clk 0:02:54.6]} 3. d4 {[%clk 0:03:01.7]} 3... cxd4 {[%clk 0:02:55.5]}
4. Qxd4 {[%clk 0:03:02.1]} 4... Nf6 {[%clk 0:02:55.6]} 5. Nc3 {[%clk 0:03:02.6]}
5... Bd7 {[%clk 0:02:54.4]} 6. Bb5 {[%clk 0:02:48.3]} 6... Bxb5 {[%clk
0:02:50.4]} 7. Nxb5 {[%clk 0:02:49.2]} 7... Nc6 {[%clk 0:02:51.1]} 8. Qd3 {[%clk
0:02:41.1]} 8... Rc8 {[%clk 0:02:28.9]} 9. c3 {[%clk 0:02:34.6]} 9... Qd7 {[%clk
0:02:20]} 10. O-O {[%clk 0:02:33.2]} 10... g6 {[%clk 0:02:17.8]} 11. Nbd4 {[%clk
0:02:33]} 11... Bg7 {[%clk 0:02:16.4]} 12. Bd2 {[%clk 0:02:15.9]} 12... O-O
{[%clk 0:02:06.3]} 13. Rad1 {[%clk 0:02:10.6]} 13... Ne5 {[%clk 0:01:45.5]} 14.
Qe2 {[%clk 0:02:09.9]} 14... Nc4 {[%clk 0:01:44.7]} 15. Bc1 {[%clk 0:02:07.8]}
15... a6 {[%clk 0:01:29.7]} 16. b3 {[%clk 0:02:07.6]} 16... Na5 {[%clk 0:01:25]}
17. c4 {[%clk 0:02:06.3]} 17... Nc6 {[%clk 0:01:16.6]} 18. Bb2 {[%clk
0:01:54.1]} 18... Nxd4 {[%clk 0:00:36.8]} 19. Nxd4 {[%clk 0:01:55]} 19... b5
{[%clk 0:00:25.7]} 20. cxb5 {[%clk 0:01:53.9]} 20... axb5 {[%clk 0:00:24.6]} 21.
e5 {[%clk 0:01:51.5]} 21... dxe5 {[%clk 0:00:20.3]} 22. Qxe5 {[%clk 0:01:51.2]}
22... b4 {[%clk 0:00:03.1]} 23. h3 {[%clk 0:01:44.2]} 23... Qc7 {[%clk
0:00:02.8]} 24. Qe2 {[%clk 0:01:39.5]} 24... e6 {[%clk 0:00:02.8]} 25. Rc1
{[%clk 0:01:38.1]} 25... Qa7 {[%clk 0:00:02.2]} 26. Ba1 {[%clk 0:01:34.2]} 26...
Nd5 {[%clk 0:00:02.4]} 27. Nb5 {[%clk 0:01:31.8]} 27... Qa5 {[%clk 0:00:01.8]}
28. Bxg7 {[%clk 0:01:31]} 28... Kxg7 {[%clk 0:00:01.7]} 29. Qb2+ {[%clk
0:01:23.5]} 1-0

[Event "Early-Titled-Tuesday-Blitz-January-23-2024"]
[Site "Chess.com"]
[Date "2024.01.23"]
[Round "8"]
[White "Orphanator2009"]
[Black "Arlo2024"]
[Result "1-0"]
[WhiteElo "2475"]
[BlackElo "2304"]
[TimeControl "180+1"]
[EndTime "9:26:41 PST"]
[Termination "Orphanator2009 won by resignation"]

1. e4 {[%clk 0:03:00.9]} 1... e6 {[%clk 0:02:51.9]} 2. d4 {[%clk 0:03:00.6]}
2... d5 {[%clk 0:02:51.5]} 3. exd5 {[%clk 0:02:59]} 3... exd5 {[%clk 0:02:51.3]}
4. Bd3 {[%clk 0:02:59.6]} 4... Nc6 {[%clk 0:02:51.1]} 5. c3 {[%clk 0:02:58.4]}
5... Bd6 {[%clk 0:02:50.8]} 6. Ne2 {[%clk 0:02:57.3]} 6... Bg4 {[%clk
0:02:49.6]} 7. f3 {[%clk 0:02:56.2]} 7... Bh5 {[%clk 0:02:47.6]} 8. Bf4 {[%clk
0:02:56.3]} 8... Bxf4 {[%clk 0:02:06.2]} 9. Nxf4 {[%clk 0:02:57.2]} 9... Bg6
{[%clk 0:02:03]} 10. Nxg6 {[%clk 0:02:36.1]} 10... hxg6 {[%clk 0:02:03.9]} 11.
Nd2 {[%clk 0:02:36.1]} 11... Qg5 {[%clk 0:01:47.1]} 12. Qe2+ {[%clk 0:02:34.4]}
12... Nge7 {[%clk 0:01:39.3]} 13. O-O-O {[%clk 0:02:32.6]} 13... O-O-O {[%clk
0:01:39.9]} 14. Kc2 {[%clk 0:02:29.1]} 14... Rde8 {[%clk 0:01:39.8]} 15. Qf2
{[%clk 0:02:28.6]} 15... Nf5 {[%clk 0:01:37.2]} 16. Nf1 {[%clk 0:02:25.9]} 16...
Re7 {[%clk 0:01:20]} 17. Qd2 {[%clk 0:01:59]} 17... Qh5 {[%clk 0:00:55.4]} 18.
g4 {[%clk 0:01:54.8]} 18... Nfxd4+ {[%clk 0:00:47.9]} 19. cxd4 {[%clk
0:01:50.9]} 19... Nxd4+ {[%clk 0:00:48.8]} 20. Kb1 {[%clk 0:01:44.9]} 20... Qh3
{[%clk 0:00:48.1]} 21. Qb4 {[%clk 0:01:17.1]} 21... Nc6 {[%clk 0:00:44]} 22. Qf4
{[%clk 0:01:14.4]} 22... Rhe8 {[%clk 0:00:35.7]} 23. Ng3 {[%clk 0:01:04.5]}
23... Re3 {[%clk 0:00:32.6]} 24. Bb5 {[%clk 0:01:02.8]} 24... g5 {[%clk
0:00:31.2]} 25. Qf5+ {[%clk 0:00:56.6]} 25... Kb8 {[%clk 0:00:31.3]} 26. Bxc6
{[%clk 0:00:56.7]} 26... bxc6 {[%clk 0:00:32]} 27. Qxg5 {[%clk 0:00:47.4]} 27...
Qxg3 {[%clk 0:00:31.1]} 28. hxg3 {[%clk 0:00:46.4]} 1-0

[Event "Early-Titled-Tuesday-Blitz-January-23-2024"]
[Site "Chess.com"]
[Date "2024.01.23"]
[Round "8"]
[White "ama18"]
[Black "MKlose11"]
[Result "1-0"]
[WhiteElo "2537"]
[BlackElo "2645"]
[TimeControl "180+1"]
[EndTime "9:26:46 PST"]
[Termination "ama18 won by resignation"]

1. Nf3 {[%clk 0:03:00.9]} 1... Nf6 {[%clk 0:02:57.8]} 2. g3 {[%clk 0:03:00.6]}
2... g6 {[%clk 0:02:55.6]} 3. Bg2 {[%clk 0:03:00.1]} 3... Bg7 {[%clk 0:02:56.5]}
4. b3 {[%clk 0:03:00.8]} 4... c5 {[%clk 0:02:56.3]} 5. Bb2 {[%clk 0:03:00.4]}
5... Nc6 {[%clk 0:02:56.9]} 6. d4 {[%clk 0:03:00.2]} 6... cxd4 {[%clk
0:02:54.1]} 7. Nxd4 {[%clk 0:03:01.1]} 7... O-O {[%clk 0:02:54.6]} 8. O-O {[%clk
0:03:00.2]} 8... Qc7 {[%clk 0:02:55]} 9. c4 {[%clk 0:02:59.4]} 9... d6 {[%clk
0:02:55.5]} 10. Nc3 {[%clk 0:02:59]} 10... Bd7 {[%clk 0:02:56]} 11. Rc1 {[%clk
0:02:58.3]} 11... Qa5 {[%clk 0:02:56.2]} 12. a3 {[%clk 0:02:18.5]} 12... Rfe8
{[%clk 0:02:55.4]} 13. b4 {[%clk 0:02:15]} 13... Qh5 {[%clk 0:02:55.3]} 14. Nxc6
{[%clk 0:01:19]} 14... Bxc6 {[%clk 0:02:52.7]} 15. e3 {[%clk 0:00:55.7]} 15...
Qxd1 {[%clk 0:02:47.4]} 16. Rfxd1 {[%clk 0:00:56.6]} 16... Rac8 {[%clk
0:02:47.8]} 17. Bxc6 {[%clk 0:00:20.6]} 17... Rxc6 {[%clk 0:02:47.7]} 18. Nb5
{[%clk 0:00:21]} 18... a6 {[%clk 0:02:46.4]} 19. Nd4 {[%clk 0:00:21.3]} 19...
Rc7 {[%clk 0:02:46.7]} 20. Nb3 {[%clk 0:00:21]} 20... Rec8 {[%clk 0:02:43.6]}
21. c5 {[%clk 0:00:21.2]} 21... Ne4 {[%clk 0:02:39.4]} 22. Bxg7 {[%clk
0:00:20.3]} 22... Kxg7 {[%clk 0:02:39.6]} 23. cxd6 {[%clk 0:00:20.7]} 23... Nxd6
{[%clk 0:02:40.3]} 24. Rxc7 {[%clk 0:00:18.9]} 24... Rxc7 {[%clk 0:02:41.2]} 25.
Rc1 {[%clk 0:00:13.8]} 25... Rxc1+ {[%clk 0:02:39.7]} 26. Nxc1 {[%clk
0:00:14.7]} 26... Nb5 {[%clk 0:02:33.9]} 27. a4 {[%clk 0:00:13]} 27... Nc3
{[%clk 0:02:33.5]} 28. a5 {[%clk 0:00:13.4]} 28... Kf6 {[%clk 0:02:34.1]} 29.
Nd3 {[%clk 0:00:13.2]} 29... Nd5 {[%clk 0:02:26.2]} 30. e4 {[%clk 0:00:11.9]}
30... Nc3 {[%clk 0:02:25.6]} 31. f3 {[%clk 0:00:12.2]} 31... Na2 {[%clk
0:02:21.9]} 32. Kf2 {[%clk 0:00:12.2]} 32... Ke6 {[%clk 0:02:19.4]} 33. Ke3
{[%clk 0:00:12.2]} 33... Kd6 {[%clk 0:02:19.8]} 34. Kd4 {[%clk 0:00:12.5]} 34...
f6 {[%clk 0:02:13.1]} 35. Kc4 {[%clk 0:00:12.5]} 35... Kc6 {[%clk 0:02:08]} 36.
Kb3 {[%clk 0:00:09.3]} 36... Kb5 {[%clk 0:02:03.7]} 37. Kxa2 {[%clk 0:00:08.9]}
37... Kc4 {[%clk 0:02:04.4]} 38. Nc5 {[%clk 0:00:08.5]} 38... Kxb4 {[%clk
0:02:04.5]} 39. Nxb7 {[%clk 0:00:09]} 39... Kb5 {[%clk 0:02:02.5]} 40. Kb3
{[%clk 0:00:09.9]} 40... Kc6 {[%clk 0:02:02.7]} 41. Nd8+ {[%clk 0:00:07.2]}
41... Kd7 {[%clk 0:02:03.4]} 42. Nf7 {[%clk 0:00:07.3]} 42... Ke6 {[%clk
0:02:03.7]} 43. Nd8+ {[%clk 0:00:06.2]} 43... Kd7 {[%clk 0:02:04]} 44. Nf7
{[%clk 0:00:05.6]} 44... Ke6 {[%clk 0:02:04.2]} 45. Nh8 {[%clk 0:00:06.3]} 45...
Ke5 {[%clk 0:02:03.9]} 46. Kc4 {[%clk 0:00:05.9]} 46... f5 {[%clk 0:02:03.9]}
47. exf5 {[%clk 0:00:05.2]} 47... gxf5 {[%clk 0:02:04.8]} 48. Nf7+ {[%clk
0:00:05.3]} 48... Kf6 {[%clk 0:02:04.9]} 49. Nd8 {[%clk 0:00:05.6]} 49... e5
{[%clk 0:02:05.8]} 50. Nb7 {[%clk 0:00:05.7]} 50... e4 {[%clk 0:02:06.1]} 51.
fxe4 {[%clk 0:00:06.5]} 51... fxe4 {[%clk 0:02:07]} 52. Kd4 {[%clk 0:00:07.1]}
52... Kf5 {[%clk 0:02:07.3]} 53. Ke3 {[%clk 0:00:07.6]} 53... Kg4 {[%clk
0:02:08.2]} 54. Nc5 {[%clk 0:00:07.9]} 54... Kh3 {[%clk 0:02:09.1]} 55. Nxa6
{[%clk 0:00:08.4]} 55... h5 {[%clk 0:02:10]} 56. Nc5 {[%clk 0:00:09.1]} 56... h4
{[%clk 0:02:10.9]} 57. gxh4 {[%clk 0:00:09.2]} 1-0

[Event "Early-Titled-Tuesday-Blitz-January-23-2024"]
[Site "Chess.com"]
[Date "2024.01.23"]
[Round "8"]
[White "ProChessWICTH"]
[Black "Vazabanga"]
[Result "0-1"]
[WhiteElo "2525"]
[BlackElo "2682"]
[TimeControl "180+1"]
[EndTime "9:26:48 PST"]
[Termination "Vazabanga won by resignation"]

1. e4 {[%clk 0:03:00.9]} 1... c5 {[%clk 0:02:55.5]} 2. Nf3 {[%clk 0:03:01]} 2...
Nc6 {[%clk 0:02:55.5]} 3. Bb5 {[%clk 0:03:01.2]} 3... g6 {[%clk 0:02:54.9]} 4.
O-O {[%clk 0:03:01]} 4... Bg7 {[%clk 0:02:54.5]} 5. c3 {[%clk 0:03:01]} 5... Nf6
{[%clk 0:02:54.8]} 6. Re1 {[%clk 0:02:59.6]} 6... O-O {[%clk 0:02:54.8]} 7. h3
{[%clk 0:02:59.8]} 7... Qb6 {[%clk 0:02:49.2]} 8. Ba4 {[%clk 0:02:59]} 8... d6
{[%clk 0:02:47.2]} 9. d4 {[%clk 0:02:58.3]} 9... Nd7 {[%clk 0:02:34.8]} 10. d5
{[%clk 0:02:26.8]} 10... Nce5 {[%clk 0:02:33.1]} 11. Na3 {[%clk 0:02:20.3]}
11... Nxf3+ {[%clk 0:02:27]} 12. Qxf3 {[%clk 0:02:21.2]} 12... a6 {[%clk
0:02:24.9]} 13. Rb1 {[%clk 0:02:05.8]} 13... Qc7 {[%clk 0:02:21.2]} 14. Bxd7
{[%clk 0:01:59.1]} 14... Bxd7 {[%clk 0:02:20.4]} 15. Nc2 {[%clk 0:01:48.6]}
15... f5 {[%clk 0:02:08.6]} 16. Bg5 {[%clk 0:01:20.7]} 16... Rf7 {[%clk
0:02:02.6]} 17. Ne3 {[%clk 0:01:03.5]} 17... h6 {[%clk 0:01:53.9]} 18. Bf4
{[%clk 0:00:54.8]} 18... g5 {[%clk 0:01:46.7]} 19. Bh2 {[%clk 0:00:52.6]} 19...
f4 {[%clk 0:01:46.8]} 20. Nc4 {[%clk 0:00:35.6]} 20... b5 {[%clk 0:01:43.7]} 21.
e5 {[%clk 0:00:36]} 21... Bf5 {[%clk 0:01:32.2]} 22. exd6 {[%clk 0:00:17.3]}
22... exd6 {[%clk 0:01:30.5]} 23. Nd2 {[%clk 0:00:16.8]} 23... Bxb1 {[%clk
0:01:29.9]} 24. Rxb1 {[%clk 0:00:17.2]} 24... Re8 {[%clk 0:01:28.9]} 25. a4
{[%clk 0:00:15.9]} 25... Rfe7 {[%clk 0:01:27.2]} 26. g3 {[%clk 0:00:14.7]} 26...
fxg3 {[%clk 0:01:13.8]} 27. Bxg3 {[%clk 0:00:15.6]} 27... Qd7 {[%clk 0:01:11]}
28. Kg2 {[%clk 0:00:15.2]} 28... Rf7 {[%clk 0:01:10.4]} 29. Qh5 {[%clk
0:00:14.3]} 29... Qf5 {[%clk 0:01:08.2]} 30. Ra1 {[%clk 0:00:11.7]} 30... Qxd5+
{[%clk 0:01:08.2]} 31. Nf3 {[%clk 0:00:11.1]} 31... Ref8 {[%clk 0:01:07.8]} 0-1